bitfinex-derivatives/quotes_SOLF0:USTF0_20240908
["timestamp","ask_amount","ask_price","bid_price","bid_amount"]
[1725782146794,1.339,129.71,129.68,2.6992]
[1725782147200,1.339,129.71,129.68,6.48418554]
[1725782147494,1.339,129.71,129.68,2.6992]
[1725782147997,1.339,129.71,129.68,6.54472988]
[1725782152707,1.339,129.71,129.68,2.6992]
[1725782153216,4.0377,129.71,129.68,2.6992]
[1725782156111,552.30998,129.78,129.69,20.72]
[1725782156314,2.7624,129.77,129.69,20.72]
[1725782156715,2.6979,129.75,129.71,2.6985]
[1725782158609,2.6982,129.74,129.7,2.6989]
[1725782161616,2.6979,129.75,129.71,2.6987]
[1725782161815,23.4824,129.77,129.69,24.66532739]
[1725782162212,2.6977,129.76,129.72,2.6983]
[1725782162521,23.4824,129.77,129.69,24.66532739]
[1725782162522,2.7624,129.77,129.69,24.66532739]
[1725782162717,5.4599,129.77,129.69,24.66532739]
[1725782164123,5.4599,129.77,129.73,2.6983]
[1725782165927,13.7499,129.77,129.73,2.6983]
[1725782166628,5.4599,129.77,129.73,2.6983]
[1725782166815,13.7499,129.77,129.73,2.6983]
[1725782167127,5.4599,129.77,129.73,2.6983]
[1725782167426,13.7499,129.77,129.73,2.6983]
[1725782169540,2.7624,129.77,129.73,8.29]
[1725782170334,2.7624,129.77,129.74,2.6979]
[1725782172335,5.4599,129.77,129.73,2.6981]
[1725782172535,8.29,129.76,129.73,2.6981]
[1725782180632,13.7499,129.77,129.73,2.6981]
[1725782184235,13.7499,129.77,129.74,2.698]
[1725782185039,5.4599,129.77,129.74,2.698]
[1725782185346,2.7624,129.77,129.75,2.6978]
[1725782185550,552.30998,129.78,129.75,8.29]
[1725782185743,552.30998,129.78,129.76,10.9876]
[1725782186541,552.30998,129.78,129.77,6.6105389]
[1725782187646,552.30998,129.78,129.77,3.9131389]
[1725782187839,552.30998,129.78,129.76,2.6976]
[1725782188246,552.30998,129.78,129.76,6.6269296]
[1725782188447,552.30998,129.78,129.76,2.6976]
[1725782189052,552.30998,129.78,129.75,8.29]
[1725782189053,552.30998,129.78,129.75,2.6978]
[1725782189541,552.30998,129.78,129.75,6.63290402]
[1725782189944,552.30998,129.78,129.76,2.6976]
[1725782196953,552.30998,129.78,129.75,6.5966713]
[1725782197259,552.30998,129.78,129.73,8.29]
[1725782198058,552.30998,129.78,129.74,6.6399422]
[1725782198059,555.00718,129.78,129.74,6.6399422]
[1725782202056,552.30998,129.78,129.75,2.6977]
[1725782202251,552.30998,129.78,129.75,10.9877]
[1725782218560,552.30998,129.78,129.76,2.6976]
[1725782226371,552.30998,129.78,129.75,10.9878]
[1725782230371,552.30998,129.78,129.75,2.6978]
[1725782231269,552.30998,129.78,129.69,146.66146774]
[1725782231471,10.9439,129.77,129.69,146.66146774]
[1725782231676,3.89356027,129.76,129.7,8.29]
[1725782231867,7.96446027,129.76,129.71,2.6985]
[1725782232770,2.6979,129.75,129.71,2.6985]
[1725782233376,10.9879,129.75,129.71,2.6985]
[1725782235175,2.6981,129.74,129.7,10.9889]
[1725782235575,10.9881,129.74,129.7,10.9889]
[1725782239578,2.6983,129.73,129.69,153.22560658]
[1725782240182,1.364,129.72,129.69,153.22560658]
[1725782240378,4.0625,129.72,129.69,3.86503884]
[1725782240783,9.654,129.72,129.56,3.75943248]
[1725782240979,2.7114,129.71,129.66,8.29]
[1725782241180,5.4102,129.71,129.67,3.78815723]
[1725782245084,5.4102,129.71,129.67,6.48765723]
[1725782245787,1.364,129.72,129.7,8.29]
[1725782245989,1.364,129.72,129.71,8.29]
[1725782247180,4.0418,129.75,129.71,8.29]
[1725782248091,1.3439,129.75,129.72,2.6985]
[1725782254094,4.0419,129.75,129.71,2.6986]
[1725782254293,12.3319,129.75,129.69,8.29]
[1725782255484,2.6981,129.74,129.7,2.6988]
[1725782256288,12.3318,129.75,129.7,2.6988]
[1725782256489,12.3318,129.75,129.71,2.6987]
[1725782259497,2.6981,129.74,129.7,2.6987]
[1725782259794,10.9881,129.74,129.7,2.6987]
[1725782264098,2.6981,129.74,129.7,2.6987]
[1725782264296,10.9881,129.74,129.7,2.6987]
[1725782268297,10.9881,129.74,129.68,158.05086967]
[1725782268298,8.29,129.71,129.68,149.76086967]
[1725782269394,8.29,129.71,129.68,152.46006967]
[1725782269701,8.29,129.71,129.68,2.6992]
[1725782270493,9.6247,129.71,129.68,2.6992]
[1725782278306,1.3347,129.71,129.68,2.6992]
[1725782278504,9.6247,129.71,129.68,2.6992]
[1725782281798,8.29,129.7,129.67,2.6994]
[1725782282399,8.29,129.7,129.65,2.6998]
[1725782282400,10.9891,129.7,129.65,2.6998]
[1725782282703,8.29,129.68,129.63,8.29]
[1725782282904,8.29,129.68,129.63,12.19638037]
[1725782283110,8.29,129.68,129.66,2.6997]
[1725782293098,8.29,129.68,129.63,3.90638037]
[1725782293303,8.29,129.67,129.55,5.4038]
[1725782293504,8.29,129.67,129.61,8.29]
[1725782293804,8.29,129.67,129.61,12.20160679]
[1725782294412,10.9896,129.67,129.63,2.7003]
[1725782297210,8.29,129.64,129.61,6.61240679]
[1725782299111,8.29,129.64,129.61,3.91160679]
[1725782299314,8.29,129.62,129.49,5.4064]
[1725782299519,8.29,129.63,129.57,8.29]
[1725782299703,8.29,129.63,129.57,12.23467595]
[1725782299909,10.9902,129.64,129.59,8.29]
[1725782301416,10.9902,129.64,129.6,2.7009]
[1725782302212,2.7004,129.63,129.59,10.9912]
[1725782302413,10.9904,129.63,129.59,2.7012]
[1725782303115,10.9904,129.63,129.58,2.7013]
[1725782303617,10.9904,129.63,129.59,2.7011]
[1725782308917,8.29,129.62,129.57,3.94467595]
[1725782309121,8.29,129.62,129.55,8.29]
[1725782309324,8.29,129.62,129.55,12.10269323]
[1725782309617,2.7008,129.61,129.57,2.7015]
[1725782309819,4.0281,129.61,129.57,2.7015]
[1725782310425,8.29,129.58,129.52,162.71155378]
[1725782310722,8.29,129.57,129.52,166.51614229]
[1725782310924,8.29,129.57,129.52,158.22614229]
[1725782311431,8.29,129.57,129.54,2.7021]
[1725782312922,8.29,129.56,129.54,2.7021]
[1725782313917,2.7015,129.58,129.54,2.7021]
[1725782314318,8.29,129.57,129.54,2.7021]
[1725782316515,8.29,129.58,129.54,2.7021]
[1725782316719,8.29,129.58,129.55,2.702]
[1725782319423,2.7582,129.6,129.52,3.80458851]
[1725782319424,2.7018,129.56,129.52,3.80458851]
[1725782319630,8.29,129.57,129.5,8.29]
[1725782319831,2.7015,129.58,129.54,2.7022]
[1725782320017,8.29,129.57,129.54,2.7022]
[1725782323427,8.29,129.57,129.43,15.8284]
[1725782323428,8.29,129.56,129.5,8.29]
[1725782324222,8.29,129.56,129.5,3.87323527]
[1725782324422,8.29,129.56,129.5,8.29]
[1725782324617,9.6611,129.56,129.52,2.7025]
[1725782325723,12.3629,129.56,129.52,2.7025]
[1725782327425,9.6611,129.56,129.51,8.29]
[1725782328127,9.6611,129.56,129.52,3.80288179]
[1725782328431,9.6611,129.56,129.53,2.7024]
[1725782328630,8.29,129.54,129.39,152.3151557]
[1725782328829,1.3711,129.56,129.46,8.29]
[1725782328830,8.29,129.53,129.46,8.29]
[1725782329035,1.3207,129.55,129.47,8.29]
[1725782329232,8.29,129.53,129.47,8.29]
[1725782329933,8.29,129.53,129.49,2.7032]
[1725782331633,10.9925,129.53,129.48,2.7034]
[1725782332035,1.3207,129.55,129.48,8.29]
[1725782332333,9.6107,129.55,129.5,2.7029]
[1725782332737,12.3129,129.55,129.5,2.7029]
[1725782333127,12.3129,129.55,129.48,8.29]
[1725782334131,1.3207,129.55,129.5,8.29]
[1725782334832,1.3207,129.55,129.5,12.22235705]
[1725782335437,1.3207,129.55,129.52,2.7026]
[1725782338639,4.0227,129.55,129.51,2.7028]
[1725782339041,1.3207,129.55,129.5,3.93235705]
[1725782339246,1.3207,129.55,129.49,8.29]
[1725782339735,1.3207,129.55,129.49,12.13933075]
[1725782340535,1.3207,129.55,129.51,2.7027]
[1725782340938,1.2897,129.61,129.53,8.29]
[1725782341139,1.3134,129.61,129.58,8.29]
[1725782341441,1.3509,129.62,129.58,8.29]
[1725782341743,553.62338,129.64,129.59,8.29]
[1725782341945,8.29,129.63,129.58,8.29]
[1725782342535,8.29,129.62,129.57,8.29]
[1725782343240,8.29,129.62,129.57,12.07908842]
[1725782343444,8.29,129.62,129.58,2.7014]
[1725782344046,10.9908,129.61,129.57,3.78908842]
[1725782344247,10.9908,129.61,129.55,8.29]
[1725782344437,10.9908,129.61,129.55,12.21684834]
[1725782345438,10.9908,129.61,129.57,2.7016]
[1725782345845,8.29,129.61,129.57,2.7016]
[1725782346041,2.7006,129.62,129.57,10.9916]
[1725782347048,2.7006,129.62,129.58,2.7014]
[1725782347237,10.9906,129.62,129.58,2.7014]
[1725782355961,2.7004,129.63,129.59,2.7012]
[1725782356151,554.96108,129.64,129.58,8.29]
[1725782356861,554.96108,129.64,129.58,12.0538836]
[1725782357451,557.66128,129.64,129.6,2.7009]
[1725782359757,554.96108,129.64,129.6,8.29]
[1725782360752,554.96108,129.64,129.61,2.7006]
[1725782361065,563.25108,129.64,129.61,2.7006]
[1725782363165,563.25108,129.64,129.6,8.29]
[1725782363166,554.96108,129.64,129.62,2.7005]
[1725782363867,552.30998,129.64,129.63,2.7003]
[1725782366369,552.30998,129.64,129.62,2.7005]
[1725782373271,552.30998,129.64,129.61,2.7007]
[1725782373571,552.30998,129.64,129.59,8.29]
[1725782373777,552.30998,129.64,129.59,12.09332759]
[1725782374272,552.30998,129.64,129.6,2.7008]
[1725782375771,560.59998,129.64,129.59,14.79452759]
[1725782375966,1.3305,129.63,129.59,14.79452759]
[1725782376775,1.3305,129.63,129.6,2.7009]
[1725782378170,10.9986,129.63,129.59,6.50442759]
[1725782378572,13.699,129.63,129.59,6.50442759]
[1725782388887,10.9986,129.63,129.6,2.7009]
[1725782389081,2.7086,129.63,129.6,2.7009]
[1725782389583,2.7086,129.63,129.6,6.52912443]
[1725782391081,2.7086,129.63,129.6,14.81912443]
[1725782392181,1.3305,129.63,129.61,2.7007]
[1725782399284,1.3305,129.63,129.62,2.7006]
[1725782400889,552.30998,129.64,129.62,2.7006]
[1725782403387,552.30998,129.64,129.63,2.7003]
[1725782403989,549.39535183,129.64,129.63,2.7003]
[1725782405581,549.39535183,129.64,129.63,6.65379845]
[1725782407090,545.59535183,129.64,129.63,2.7003]
[1725782407679,545.59535183,129.64,129.63,6.64569623]
[1725782407886,542.59535183,129.64,129.63,2.7003]
[1725782408593,536.88965183,129.64,129.63,2.7003]
[1725782409089,536.88965183,129.64,129.63,6.62124739]
[1725782409292,528.98965183,129.64,129.63,2.7003]
[1725782409494,528.98965183,129.64,129.63,6.56493632]
[1725782409688,528.98965183,129.64,129.63,2.7003]
[1725782410289,528.98965183,129.64,129.63,6.62163308]
[1725782429701,525.98965183,129.64,129.63,2.7003]
[1725782430312,525.98965183,129.64,129.63,6.63121969]
[1725782430606,525.98965183,129.64,129.63,2.7003]
[1725782431110,525.98965183,129.64,129.63,6.55179159]
[1725782431508,522.18965183,129.64,129.63,2.7003]
[1725782431905,522.18965183,129.64,129.63,6.60839176]
[1725782450040,522.18965183,129.64,129.62,136.11783228]
[1725782450340,522.18965183,129.64,129.62,131.92083228]
[1725782450538,522.18965183,129.64,129.62,129.82233228]
[1725782450736,522.18965183,129.64,129.62,133.59623632]
[1725782451444,522.18965183,129.64,129.62,136.29673632]
[1725782453141,522.18965183,129.64,129.62,114.84943228]
[1725782456637,522.18965183,129.64,129.61,3.79424785]
[1725782456940,522.18965183,129.64,129.6,2.7009]
[1725782457246,522.18965183,129.64,129.59,2.701]
[1725782457443,545.32965183,129.64,129.51,2.5466]
[1725782459235,545.32965183,129.64,129.42,5.4094]
[1725782459444,545.32965183,129.64,129.44,4.021]
[1725782459445,549.15158563,129.64,129.44,4.021]
[1725782459638,549.15158563,129.64,129.45,1.41851911]
[1725782459833,2.7012,129.6,129.45,1.41851911]
[1725782460342,549.15158563,129.64,129.45,1.41851911]
[1725782460542,0.28375294,129.63,129.45,1.41851911]
[1725782461442,549.15158563,129.64,129.44,4.021]
[1725782461637,2.7016,129.58,129.5,2.7029]
[1725782461947,2.7016,129.58,129.5,3.88190108]
[1725782462143,1.0,129.62,129.44,4.021]
[1725782462446,1.0,129.62,129.5,2.7029]
[1725782462646,0.28378209,129.61,129.5,3.89734067]
[1725782462947,2.7015,129.58,129.51,2.7028]
[1725782463249,1.0,129.62,129.51,2.7028]
[1725782463447,2.7018,129.57,129.51,2.7028]
[1725782466046,2.7018,129.57,129.52,2.7026]
[1725782466641,2.7019,129.56,129.52,2.7026]
[1725782469552,3.87083176,129.56,129.5,3.8943826]
[1725782469740,23.14,129.55,129.44,4.021]
[1725782470146,25.8421,129.55,129.5,2.7029]
[1725782471446,25.8421,129.55,129.49,3.84217048]
[1725782471653,2.7018,129.56,129.51,2.7028]
[1725782471840,2.7018,129.56,129.51,6.52913842]
[1725782472244,2.7016,129.57,129.51,3.82633842]
[1725782472445,23.14,129.61,129.44,162.90377357]
[1725782472949,2.7015,129.58,129.44,162.90377357]
[1725782473661,2.7015,129.58,129.52,2.7025]
[1725782473953,2.7015,129.58,129.52,6.58791904]
[1725782474252,2.7015,129.58,129.52,2.7025]
[1725782474455,2.7015,129.58,129.53,2.7024]
[1725782474651,2.7012,129.59,129.52,3.82904146]
[1725782474855,2.7012,129.59,129.44,162.90377357]
[1725782475057,2.7012,129.59,129.45,1.41883329]
[1725782475749,2.701,129.6,129.45,1.41883329]
[1725782476149,2.701,129.6,129.54,2.7022]
[1725782476351,2.701,129.6,129.55,3.8415792]
[1725782476554,2.701,129.6,129.54,2.7022]
[1725782477054,2.701,129.6,129.54,6.59937034]
[1725782477556,2.701,129.6,129.55,2.702]
[1725782481047,1.0,129.62,129.57,2.7014]
[1725782481258,1.0,129.62,129.44,162.90377357]
[1725782481458,1.0,129.62,129.45,1.41871991]
[1725782481661,2.701,129.6,129.55,2.7019]
[1725782482059,2.7013,129.59,129.54,2.7022]
[1725782482253,2.7013,129.59,129.53,3.8811291]
[1725782482559,2.7013,129.59,129.44,162.90377357]
[1725782482957,2.7013,129.59,129.45,1.41871203]
[1725782483164,2.701,129.6,129.45,1.41871203]
[1725782483461,1.0,129.62,129.45,1.41871203]
[1725782484757,23.14,129.63,129.45,1.41871203]
[1725782485665,522.18965183,129.64,129.45,1.41871203]
[1725782485666,545.36965183,129.64,129.45,1.41871203]
[1725782486658,545.36965183,129.64,129.44,162.90377357]
[1725782486860,545.36965183,129.64,129.45,1.41828552]
[1725782487057,545.36965183,129.64,129.46,1.41828552]
[1725782487254,545.36965183,129.64,129.44,162.90377357]
[1725782487255,545.36965183,129.64,129.47,1.41828552]
[1725782487456,545.36965183,129.64,129.61,2.7006]
[1725782487848,522.18965183,129.64,129.62,2.7004]
[1725782489566,522.18965183,129.64,129.63,2.7003]
[1725782490763,517.99165183,129.64,129.63,2.7003]
[1725782490958,503.20544359,129.64,129.63,2.7003]
[1725782491264,493.90994359,129.64,129.63,2.7003]
[1725782491466,491.81164359,129.64,129.63,2.7003]
[1725782491863,491.81164359,129.64,129.63,6.5992238]
[1725782492061,491.81164359,129.64,129.63,2.7003]
[1725782492565,488.81164359,129.64,129.63,2.7003]
[1725782493067,488.81164359,129.64,129.63,6.61695949]
[1725782493262,488.81164359,129.64,129.63,2.7003]
[1725782493669,488.81164359,129.64,129.63,6.55487598]
[1725782493867,488.81164359,129.64,129.63,2.7003]
[1725782494467,488.81164359,129.64,129.63,6.64395232]
[1725782497668,485.81164359,129.64,129.63,2.7003]
[1725782498269,485.81164359,129.64,129.63,6.61918972]
[1725782498462,482.81164359,129.64,129.63,2.7003]
[1725782499069,482.81164359,129.64,129.63,6.64040001]
[1725782501368,474.76404359,129.64,129.63,2.7003]
[1725782501672,447.31404359,129.64,129.63,10.4173]
[1725782501874,440.14204359,129.64,129.63,10.4173]
[1725782502071,431.36824359,129.64,129.63,10.4173]
[1725782502276,425.35534359,129.64,129.63,10.4173]
[1725782502474,425.35534359,129.64,129.63,14.26039691]
[1725782502475,414.12734359,129.64,129.63,14.26039691]
[1725782502671,403.66794359,129.64,129.63,14.26039691]
[1725782502877,393.43714359,129.64,129.63,10.4173]
[1725782503075,387.37464359,129.64,129.63,6.48016144]
[1725782503276,382.56404359,129.64,129.63,6.48016144]
[1725782503777,378.61224359,129.64,129.63,6.48016144]
[1725782504180,374.26154359,129.64,129.63,6.48016144]
[1725782504380,368.75574359,129.64,129.63,6.48016144]
[1725782504674,359.58474359,129.64,129.63,2.7003]
[1725782504871,354.35174359,129.64,129.63,2.7003]
[1725782505071,348.58344359,129.64,129.63,2.7003]
[1725782505280,336.83944359,129.64,129.63,2.7003]
[1725782505479,3.9149,129.74,129.71,2.6986]
[1725782506082,3.9149,129.74,129.71,6.63902715]
[1725782506381,3.9149,129.74,129.71,2.6986]
[1725782506779,3.9149,129.74,129.71,6.59122234]
[1725782506985,3.9149,129.74,129.71,2.6986]
[1725782507678,3.9149,129.74,129.72,3.77503792]
[1725782509881,3.9149,129.74,129.72,6.47343792]
[1725782510878,3.9149,129.74,129.72,3.77503792]
[1725782511075,3.9149,129.74,129.71,2.6986]
[1725782511581,3.9149,129.74,129.72,3.86525023]
[1725782513287,3.9149,129.74,129.71,2.6986]
[1725782513678,3.9149,129.74,129.71,6.59392099]
[1725782513884,3.9149,129.74,129.71,2.6986]
[1725782514286,3.9149,129.74,129.72,3.84250439]
[1725782514485,3.9149,129.74,129.59,11.6038395]
[1725782514786,3.9149,129.74,129.68,2.6992]
[1725782515487,3.9149,129.74,129.69,3.84262202]
[1725782517289,3.9149,129.74,129.69,2.6991]
[1725782517590,3.9149,129.74,129.7,3.76935577]
[1725782518894,3.9149,129.74,129.69,2.6991]
[1725782519692,3.9149,129.74,129.69,6.58066881]
[1725782520494,3.9149,129.74,129.69,3.88156881]
[1725782520694,3.9149,129.74,129.68,2.6992]
[1725782521302,3.9149,129.74,129.68,6.64092426]
[1725782521598,3.9149,129.74,129.67,2.6994]
[1725782522388,3.9149,129.74,129.67,3.81764849]
[1725782522593,3.9149,129.74,129.66,2.6997]
[1725782523197,3.9149,129.74,129.66,6.6465185]
[1725782526502,3.9149,129.74,129.67,2.6995]
[1725782527206,3.9149,129.74,129.67,6.53604398]
[1725782529408,3.9149,129.74,129.68,2.6992]
[1725782530407,3.9149,129.74,129.67,3.83654398]
[1725782530707,3.9149,129.74,129.58,7.717]
[1725782530900,6.613,129.74,129.66,2.6995]
[1725782531100,6.613,129.74,129.66,3.83547513]
[1725782531101,3.9149,129.74,129.66,3.83547513]
[1725782531296,3.9149,129.74,129.58,7.717]
[1725782531501,3.9149,129.74,129.59,1.41718184]
[1725782531703,3.9149,129.74,129.6,1.41718184]
[1725782531905,3.9149,129.74,129.61,1.41718184]
[1725782532094,3.9149,129.74,129.57,11.28220454]
[1725782532301,6.613,129.74,129.59,7.717]
[1725782532603,6.613,129.74,129.66,2.6997]
[1725782532804,6.613,129.74,129.66,6.64737088]
[1725782533205,2.6985,129.72,129.66,3.94767088]
[1725782533404,3.9149,129.74,129.57,7.717]
[1725782533608,3.9149,129.74,129.58,1.41732567]
[1725782533811,2.6985,129.72,129.59,2.83467533]
[1725782534005,3.9149,129.74,129.6,1.41734984]
[1725782534403,2.6984,129.73,129.64,2.7]
[1725782534599,2.6984,129.73,129.64,6.53962833]
[1725782536605,6.613,129.74,129.65,2.6998]
[1725782536913,27.0949,129.74,129.64,3.83962833]
[1725782537104,27.0949,129.74,129.63,2.7003]
[1725782537306,27.0949,129.74,129.63,6.48556669]
[1725782537713,2.6986,129.72,129.63,6.48556669]
[1725782539711,2.6987,129.71,129.63,6.48556669]
[1725782540907,27.0949,129.74,129.63,6.48556669]
[1725782540908,27.07082007,129.73,129.63,3.78526669]
[1725782541110,23.18,129.73,129.51,3.56520454]
[1725782541318,0.28354497,129.72,129.52,1.41777321]
[1725782541613,2.7,129.65,129.52,1.41777321]
[1725782541806,4.0809,129.64,129.53,1.41785172]
[1725782542212,4.0809,129.64,129.49,7.717]
[1725782542415,4.0809,129.64,129.5,1.41805378]
[1725782543705,4.0809,129.64,129.57,2.7016]
[1725782544510,4.0809,129.64,129.57,6.50772042]
[1725782546016,4.0809,129.64,129.58,2.7014]
[1725782546719,4.0809,129.64,129.58,6.57657532]
[1725782551417,4.0809,129.64,129.58,3.87517532]
[1725782551616,4.0809,129.64,129.56,2.7016]
[1725782552014,4.0809,129.64,129.57,2.7014]
[1725782552417,4.0809,129.64,129.57,3.78962524]
[1725782552615,4.0809,129.64,129.46,7.717]
[1725782552809,4.0809,129.64,129.56,2.7018]
[1725782553013,4.0809,129.64,129.56,6.52498564]
[1725782553214,4.0809,129.64,129.56,2.7018]
[1725782553723,4.0809,129.64,129.56,6.61332279]
[1725782554022,4.0809,129.64,129.58,2.7012]
[1725782554220,4.0809,129.64,129.46,11.60884945]
[1725782554415,4.0809,129.64,129.47,1.41804824]
[1725782555315,4.0809,129.64,129.47,9.13504824]
[1725782555621,2.7005,129.63,129.48,1.41804824]
[1725782556521,2.7005,129.63,129.55,2.702]
[1725782556721,2.7006,129.62,129.55,3.89275034]
[1725782556920,2.7006,129.62,129.54,2.7022]
[1725782557622,2.7006,129.62,129.54,6.52309289]
[1725782558425,27.2609,129.64,129.54,3.82089289]
[1725782558613,27.2609,129.64,129.44,7.717]
[1725782558813,27.2609,129.64,129.45,1.41825586]
[1725782559021,2.7012,129.59,129.51,2.7027]
[1725782559213,2.6526,129.58,129.51,6.55214733]
[1725782559524,3.9853,129.58,129.51,6.55214733]
[1725782559826,3.9853,129.58,129.52,2.7026]
[1725782561720,3.9853,129.58,129.51,3.84944733]
[1725782561918,27.1653,129.58,129.5,2.703]
[1725782562124,27.1653,129.58,129.5,3.7772978]
[1725782562320,2.7017,129.57,129.41,9.22807766]
[1725782562529,2.7017,129.57,129.42,1.41881558]
[1725782563125,6.6867,129.58,129.5,2.703]
[1725782563324,6.6867,129.58,129.5,6.58914697]
[1725782563625,29.8667,129.58,129.5,6.58914697]
[1725782564732,29.8667,129.58,129.51,2.7028]
[1725782567230,6.6867,129.58,129.5,3.88614697]
[1725782567529,3.9853,129.58,129.42,7.717]
[1725782567834,3.9853,129.58,129.43,1.4186937]
[1725782569326,3.9853,129.58,129.53,2.7024]
[1725782569524,3.9853,129.58,129.53,6.5057603]
[1725782575230,2.6526,129.58,129.53,3.8033603]
[1725782575535,2.6526,129.58,129.54,2.7021]
[1725782575736,2.6526,129.58,129.54,6.53111729]
[1725782576735,2.6526,129.58,129.54,3.82901729]
[1725782577039,2.6526,129.58,129.53,2.7024]
[1725782577425,2.6526,129.58,129.53,6.47805148]
[1725782577734,2.6526,129.58,129.54,2.7022]
[1725782577934,2.6526,129.58,129.54,6.60018198]
[1725782578632,2.6526,129.58,129.54,3.89798198]
[1725782578839,2.6526,129.58,129.53,2.7024]
[1725782579340,2.6526,129.58,129.53,6.50313502]
[1725782579639,2.6526,129.58,129.53,2.7024]
[1725782580037,2.6526,129.58,129.53,6.51645379]
[1725782580345,2.6526,129.58,129.53,2.7024]
[1725782580942,2.6526,129.58,129.53,6.62916543]
[1725782583134,2.6526,129.58,129.53,3.92676543]
[1725782583334,2.6526,129.58,129.42,7.717]
[1725782583535,2.6526,129.58,129.43,1.41865309]
[1725782584636,1.3085,129.57,129.43,1.41865309]
[1725782585336,1.3085,129.57,129.51,2.7028]
[1725782585545,1.3085,129.57,129.51,6.56934962]
[1725782586640,1.3085,129.57,129.53,2.7024]
[1725782586939,1.3085,129.57,129.42,11.28220454]
[1725782587139,1.3085,129.57,129.43,6.56591852]
[1725782587343,1.3085,129.57,129.44,1.41849255]
[1725782587539,1.3085,129.57,129.45,1.41849255]
[1725782587739,1.3085,129.57,129.46,1.41849255]
[1725782587942,1.3085,129.57,129.47,1.41849255]
[1725782588138,1.3085,129.57,129.48,1.41849255]
[1725782588441,1.3085,129.57,129.52,2.7025]
[1725782588944,1.3085,129.57,129.53,2.7024]
[1725782598656,2.6526,129.58,129.55,2.702]
[1725782598952,2.6526,129.58,129.52,3.93856739]
[1725782599149,2.6526,129.58,129.44,3.56520454]
[1725782599348,2.6526,129.58,129.53,2.7022]
[1725782599653,2.6526,129.58,129.53,6.47882029]
[1725782599845,2.6526,129.58,129.53,2.7022]
[1725782600041,2.6526,129.58,129.54,2.7022]
[1725782600252,2.7006,129.62,129.53,3.95570581]
[1725782600452,2.7006,129.62,129.45,7.717]
[1725782600650,2.7006,129.62,129.46,1.41847166]
[1725782601055,2.7008,129.61,129.54,2.702]
[1725782601357,2.7008,129.61,129.54,6.55967192]
[1725782601555,2.7008,129.61,129.54,2.702]
[1725782602150,2.7008,129.61,129.54,6.5453914]
[1725782602454,2.7008,129.61,129.54,2.702]
[1725782602853,2.7008,129.61,129.54,6.62498236]
[1725782603252,2.6434,129.63,129.54,3.92298236]
[1725782603555,2.6434,129.63,129.53,2.7023]
[1725782603859,2.6434,129.63,129.54,2.7022]
[1725782603860,2.7011,129.6,129.54,2.7022]
[1725782604651,2.7011,129.6,129.54,6.5545571]
[1725782605957,2.7011,129.6,129.54,3.8523571]
[1725782606250,1.3826,129.59,129.53,2.7024]
[1725782606659,2.756,129.58,129.53,6.63464469]
[1725782606959,2.756,129.58,129.53,2.7024]
[1725782607459,2.756,129.58,129.53,6.51191883]
[1725782611669,2.756,129.58,129.54,2.7022]
[1725782612464,2.756,129.58,129.54,6.50621782]
[1725782614868,23.18,129.66,129.54,3.80401782]
[1725782615056,2.7015,129.64,129.47,11.28220454]
[1725782615253,2.7015,129.64,129.49,7.717]
[1725782615461,2.7015,129.64,129.58,2.7014]
[1725782616261,2.7015,129.64,129.58,6.51196134]
[1725782616456,2.7015,129.64,129.49,11.65027106]
[1725782616457,2.7015,129.64,129.59,2.7012]
[1725782616653,2.7015,129.64,129.59,6.53221296]
[1725782617761,2.7015,129.64,129.59,3.83101296]
[1725782617961,2.7015,129.64,129.49,11.65027106]
[1725782618162,2.7015,129.64,129.5,1.41823942]
[1725782618364,2.7015,129.64,129.5,9.13523942]
[1725782618562,2.7004,129.63,129.5,7.717]